bitfinex-derivatives/quotes_BTCF0:USTF0_20240815
["timestamp","ask_amount","ask_price","bid_price","bid_amount"]
[1723720223028,0.085482,58483.0,58482.0,0.08540066]
[1723720223220,0.085483,58482.0,58481.0,0.08565701]
[1723720223422,0.085483,58482.0,58481.0,0.16122063]
[1723720224125,0.085483,58482.0,58481.0,0.08565701]
[1723720224323,0.085483,58482.0,58481.0,0.08665701]
[1723720224923,0.41298269,58486.0,58481.0,0.08665701]
[1723720225124,0.41198269,58486.0,58485.0,0.06828907]
[1723720225431,0.3608,58486.0,58485.0,0.085479]
[1723720226834,0.3618,58486.0,58485.0,0.085479]
[1723720227630,0.005,58486.0,58485.0,0.085479]
[1723720228024,0.005,58486.0,58485.0,0.33128097]
[1723720228328,0.005,58486.0,58485.0,0.24586742]
[1723720228536,0.02050073,58486.0,58485.0,0.24586742]
[1723720228832,0.005,58486.0,58485.0,0.24586742]
[1723720229431,0.44627,58491.0,58490.0,0.085471]
[1723720229635,0.44627,58491.0,58490.0,0.24575603]
[1723720229827,0.44627,58491.0,58490.0,0.16038042]
[1723720230022,0.08547,58491.0,58490.0,0.16038042]
[1723720230232,0.10079989,58491.0,58490.0,0.16038042]
[1723720230729,0.10479989,58491.0,58490.0,0.17184523]
[1723720231224,0.10479989,58491.0,58490.0,0.086471]
[1723720232228,0.10479989,58491.0,58490.0,0.20759626]
[1723720232427,0.01,58491.0,58490.0,0.20866584]
[1723720232933,0.01,58491.0,58490.0,0.37952121]
[1723720233133,0.085456,58501.0,58492.0,0.085469]
[1723720233432,0.085456,58501.0,58500.0,0.085457]
[1723720235134,0.085456,58501.0,58500.0,0.15469879]
[1723720235532,0.086456,58501.0,58500.0,0.15469879]
[1723720235836,0.1022342,58501.0,58500.0,0.15469879]
[1723720236330,0.1022342,58501.0,58500.0,0.15569879]
[1723720237839,0.0167782,58501.0,58500.0,0.15569879]
[1723720239844,0.1022332,58501.0,58500.0,0.15569879]
[1723720240241,0.1022332,58501.0,58500.0,0.087457]
[1723720240728,0.1022332,58501.0,58500.0,0.135757]
[1723720243242,0.001,58501.0,58500.0,1.66561555]
[1723720243536,0.00025558,58506.0,58505.0,0.1709]
[1723720243751,0.00025558,58506.0,58505.0,0.32808183]
[1723720244135,0.00025558,58506.0,58505.0,0.1709]
[1723720244740,0.00025558,58506.0,58505.0,0.1719]
[1723720245136,0.00025558,58506.0,58505.0,0.18759408]
[1723720245343,0.085431,58518.0,58515.0,0.085433]
[1723720245344,0.13661369,58518.0,58515.0,0.085433]
[1723720245545,0.13661369,58518.0,58516.0,0.085433]
[1723720245546,0.085431,58518.0,58516.0,0.085433]
[1723720245735,0.446232,58517.0,58516.0,0.13650538]
[1723720245936,0.46191987,58517.0,58516.0,0.13650538]
[1723720246239,0.46191987,58517.0,58516.0,0.085433]
[1723720247443,0.085433,58516.0,58515.0,0.001]
[1723720247635,0.085433,58516.0,58515.0,0.002]
[1723720247943,0.085433,58516.0,58515.0,0.087435]
[1723720248446,0.085433,58516.0,58515.0,0.085435]
[1723720248637,0.085433,58516.0,58513.0,0.0458]
[1723720249343,0.085433,58516.0,58515.0,0.001]
[1723720250052,0.085433,58516.0,58513.0,0.0468]
[1723720250247,0.37648787,58517.0,58516.0,0.085433]
[1723720250440,0.01568787,58517.0,58516.0,0.085433]
[1723720250641,0.38959547,58521.0,58519.0,0.085429]
[1723720250842,0.47502347,58521.0,58519.0,0.085429]
[1723720251139,0.38959547,58521.0,58519.0,0.085429]
[1723720251842,0.09409547,58521.0,58520.0,0.085428]
[1723720252144,0.085419,58526.0,58523.0,0.085423]
[1723720252738,0.2955,58528.0,58519.0,0.002]
[1723720252939,0.085419,58527.0,58519.0,0.087428]
[1723720253139,0.085419,58527.0,58526.0,0.085419]
[1723720253343,0.31131802,58528.0,58526.0,0.085419]
[1723720254049,0.01581802,58528.0,58527.0,0.085417]
[1723720254244,0.3608,58530.0,58527.0,0.085417]
[1723720254943,0.37651097,58530.0,58527.0,0.085417]
[1723720256051,0.46192397,58530.0,58527.0,0.085417]
[1723720256449,0.46192397,58530.0,58527.0,0.086417]
[1723720256752,0.37651097,58530.0,58529.0,0.085414]
[1723720256949,0.3608,58537.0,58527.0,0.087417]
[1723720256950,0.3608,58537.0,58536.0,0.085404]
[1723720257151,0.37606399,58537.0,58536.0,0.085404]
[1723720257447,0.37606399,58537.0,58528.0,0.4591]
[1723720257448,0.46146699,58537.0,58531.0,0.00025635]
[1723720257651,0.085404,58536.0,58533.0,0.085408]
[1723720258344,0.085406,58535.0,58533.0,0.085408]
[1723720258547,0.085408,58534.0,58531.0,0.00025635]
[1723720258953,0.2955,58533.0,58531.0,0.00025635]
[1723720259256,0.44621,58532.0,58531.0,0.00025635]
[1723720260351,0.44621,58532.0,58531.0,0.00125635]
[1723720261342,0.3608,58532.0,58531.0,0.00225635]
[1723720261547,0.3608,58532.0,58531.0,0.08766835]
[1723720262055,0.37606399,58537.0,58535.0,0.085404]
[1723720262847,0.46146699,58537.0,58535.0,0.085404]
[1723720263049,0.10066699,58537.0,58535.0,0.085404]
[1723720263444,0.10066699,58537.0,58532.0,0.0952]
[1723720263445,0.085406,58535.0,58532.0,0.18061]
[1723720263859,0.01526399,58537.0,58532.0,0.18061]
[1723720263860,0.085408,58534.0,58532.0,0.08541]
[1723720264561,0.085408,58534.0,58533.0,0.085409]
[1723720264859,0.10066799,58537.0,58534.0,0.085407]
[1723720265156,0.085405,58536.0,58534.0,0.085407]
[1723720265346,0.085408,58534.0,58532.0,0.001]
[1723720265658,0.085408,58534.0,58532.0,0.002]
[1723720265958,0.085409,58533.0,58532.0,0.002]
[1723720266759,0.085409,58533.0,58531.0,0.08566735]
[1723720267154,0.08541,58532.0,58531.0,0.08566735]
[1723720269352,0.08541,58532.0,58531.0,0.08666735]
[1723720269552,0.08541,58532.0,58531.0,0.00125635]
[1723720270354,0.08541,58532.0,58531.0,0.00225635]
[1723720271259,0.09541,58532.0,58531.0,0.00225635]
[1723720271667,0.45621,58532.0,58531.0,0.00225635]
[1723720271963,0.45621,58532.0,58524.0,0.05107238]
[1723720271964,1.36877,58532.0,58524.0,0.05107238]
[1723720272164,0.3608,58525.0,58516.0,0.05102467]
[1723720272465,0.085435,58515.0,58513.0,0.085438]
[1723720272859,0.085438,58513.0,58512.0,0.05103315]
[1723720273063,0.085438,58513.0,58511.0,0.08544]
[1723720273375,0.085438,58513.0,58512.0,0.05106376]
[1723720273859,0.3608,58515.0,58512.0,3.82106376]
[1723720274064,0.085433,58517.0,58515.0,0.085434]
[1723720274264,0.01606791,58518.0,58514.0,0.0510697]
[1723720274467,0.10149991,58518.0,58516.0,0.085433]
[1723720274762,0.085432,58517.0,58516.0,0.1365027]
[1723720275565,0.085433,58516.0,58515.0,0.0510697]
[1723720276361,0.085433,58516.0,58514.0,0.085436]
[1723720276670,0.085433,58516.0,58515.0,0.0510751]
[1723720277059,0.086433,58516.0,58515.0,0.0510751]
[1723720277260,0.085435,58515.0,58514.0,0.085436]
[1723720277565,0.3608,58515.0,58514.0,0.085436]
[1723720277956,0.086433,58516.0,58515.0,0.085435]
[1723720278566,0.085433,58516.0,58515.0,0.085435]
[1723720278764,0.086433,58516.0,58515.0,0.085435]
[1723720279665,0.086433,58516.0,58515.0,0.13651445]
[1723720279970,0.086433,58516.0,58515.0,0.05107945]
[1723720280161,0.085435,58515.0,58514.0,0.085436]
[1723720280362,0.446235,58515.0,58514.0,0.085436]
[1723720280767,0.170872,58514.0,58513.0,0.05108081]
[1723720281070,0.085442,58510.0,58508.0,0.05108081]
[1723720281282,0.085442,58510.0,58507.0,0.05133716]
[1723720281283,0.741742,58510.0,58507.0,0.05133716]
[1723720281471,0.17089,58508.0,58507.0,0.05133716]
[1723720282262,0.3608,58510.0,58509.0,0.085444]
[1723720282467,0.3608,58510.0,58509.0,0.170888]
[1723720282765,0.3608,58515.0,58514.0,0.085436]
[1723720283074,0.446236,58515.0,58514.0,0.085436]
[1723720284973,0.085441,58512.0,58511.0,0.085439]
[1723720285173,0.085441,58511.0,58510.0,0.0951]
[1723720287077,0.085441,58511.0,58510.0,0.180542]
[1723720288270,0.085441,58511.0,58510.0,0.182542]
[1723720290077,0.085441,58511.0,58510.0,0.23359897]
[1723720290274,0.085441,58511.0,58510.0,0.182542]
[1723720290980,0.18577076,58511.0,58510.0,0.182542]
[1723720291280,0.19577076,58511.0,58510.0,0.182542]
[1723720291577,0.19577076,58511.0,58510.0,0.087442]
[1723720292172,0.19577076,58511.0,58510.0,0.13849897]
[1723720292472,0.28121176,58511.0,58510.0,0.002]
[1723720292680,0.57671176,58511.0,58510.0,0.002]
[1723720293074,1.08943176,58511.0,58510.0,0.002]
[1723720293282,0.17089,58508.0,58507.0,0.00025635]
[1723720293576,0.53169,58508.0,58507.0,0.00025635]
[1723720295679,0.619135,58508.0,58507.0,0.00125635]
[1723720296789,0.619135,58508.0,58507.0,0.00225635]
[1723720297282,0.619135,58508.0,58507.0,0.05331332]
[1723720299286,0.619135,58508.0,58507.0,0.00225635]
[1723720299487,0.53369,58508.0,58507.0,0.08770335]
[1723720299689,0.448245,58508.0,58507.0,0.08770335]
[1723720300380,0.3628,58508.0,58507.0,0.08770335]
[1723720300586,0.3628,58508.0,58507.0,0.08670335]
[1723720300788,0.3628,58508.0,58507.0,0.17215035]
[1723720301088,0.3628,58508.0,58507.0,0.24024992]
[1723720301284,0.3628,58508.0,58507.0,0.17215035]
[1723720301884,0.3608,58508.0,58507.0,0.17115035]
[1723720302591,0.3608,58508.0,58507.0,0.25659735]
[1723720304398,0.3608,58508.0,58507.0,0.25859735]
[1723720305387,0.3608,58508.0,58507.0,0.26359735]
[1723720305690,0.01504217,58510.0,58509.0,0.170888]
[1723720305890,0.085441,58511.0,58510.0,0.170883]
[1723720306085,0.085441,58511.0,58510.0,0.220383]
[1723720306283,0.10043968,58511.0,58510.0,0.220383]
[1723720308693,0.18588068,58511.0,58510.0,0.134941]
[1723720308879,0.18588068,58511.0,58510.0,0.0505]
[1723720308880,0.19588068,58511.0,58510.0,0.0505]
[1723720309078,0.57682168,58511.0,58510.0,0.001]
[1723720309282,0.17089,58508.0,58507.0,0.00025635]
[1723720309485,0.085451,58504.0,58502.0,0.08519835]
[1723720309687,0.085454,58502.0,58501.0,0.08519835]
[1723720309890,0.17091,58501.0,58500.0,0.08519835]
[1723720310290,0.170914,58500.0,58499.0,0.17065635]
[1723720310492,0.170914,58500.0,58499.0,0.24517766]
[1723720310700,0.617171,58500.0,58499.0,0.15971966]
[1723720310990,0.617171,58500.0,58494.0,0.20209437]
[1723720310991,0.085463,58496.0,58495.0,0.08519835]
[1723720311216,0.085464,58495.0,58494.0,0.2705187]
[1723720311394,0.085464,58495.0,58494.0,0.26039785]
[1723720311587,0.466428,58495.0,58494.0,0.04995635]
[1723720311790,0.466428,58495.0,58494.0,0.00025635]
[1723720311987,0.380964,58495.0,58494.0,0.00025635]
[1723720312188,0.380964,58495.0,58494.0,0.06849764]
[1723720312395,0.085464,58495.0,58494.0,0.06849764]
[1723720312894,0.085464,58495.0,58494.0,0.00025635]
[1723720313397,0.085464,58495.0,58494.0,0.06849764]
[1723720313790,0.10037198,58495.0,58494.0,0.06849764]
[1723720314198,0.10037198,58495.0,58494.0,0.00025635]
[1723720314589,0.10037198,58495.0,58494.0,0.00125635]
[1723720315193,0.10237198,58495.0,58494.0,0.00025635]
[1723720315395,0.18783598,58495.0,58494.0,0.00025635]
[1723720315789,0.18583598,58495.0,58494.0,0.00025635]
[1723720316095,0.10237198,58495.0,58494.0,0.00025635]
[1723720318296,0.10137198,58495.0,58494.0,0.00025635]
[1723720319001,0.10237198,58495.0,58494.0,0.00025635]
[1723720319296,0.10237198,58495.0,58494.0,0.05137231]
[1723720319802,0.10237198,58495.0,58494.0,0.00025635]
[1723720320690,0.10237198,58495.0,58494.0,0.05137231]
[1723720321605,0.18783598,58495.0,58494.0,0.00025635]
[1723720321802,0.10237198,58495.0,58494.0,0.00025635]
[1723720324093,0.18783598,58495.0,58494.0,0.00025635]
[1723720325199,0.18683598,58495.0,58494.0,0.00025635]
[1723720325398,0.19683598,58495.0,58494.0,0.00025635]
[1723720325710,0.19583598,58495.0,58494.0,0.00025635]
[1723720325904,0.19783598,58495.0,58494.0,0.00025635]
[1723720327307,0.18783598,58495.0,58494.0,0.00025635]
[1723720327610,0.10237198,58495.0,58494.0,0.00025635]
[1723720327904,0.18783598,58495.0,58494.0,0.00025635]
[1723720328595,0.18783598,58495.0,58494.0,0.05137231]
[1723720328798,0.18783598,58495.0,58494.0,0.00025635]
[1723720329505,0.10237198,58495.0,58494.0,0.00025635]
[1723720329899,0.18783598,58495.0,58494.0,0.04635635]
[1723720330295,0.18783598,58495.0,58494.0,0.09747231]
[1723720330601,0.18783598,58495.0,58494.0,0.04635635]
[1723720332911,0.19783598,58495.0,58494.0,0.00025635]
[1723720333204,0.18783598,58495.0,58494.0,0.00025635]
[1723720334706,0.10237198,58495.0,58494.0,0.00025635]
[1723720334907,0.18783598,58495.0,58494.0,0.00025635]
[1723720335208,0.18783598,58495.0,58494.0,0.05137231]
[1723720335412,0.18783598,58495.0,58494.0,0.00025635]
[1723720336294,0.18783598,58495.0,58494.0,0.05137231]
[1723720337209,0.18783598,58495.0,58494.0,0.00025635]
[1723720338305,0.18783598,58495.0,58494.0,0.06849764]
[1723720338995,0.18783598,58495.0,58494.0,0.00025635]
[1723720338996,0.20783598,58495.0,58494.0,0.00025635]
[1723720339201,0.27329998,58495.0,58494.0,0.00025635]
[1723720339407,0.27329998,58495.0,58494.0,0.06858072]
[1723720340200,0.34154529,58495.0,58494.0,0.00025635]
[1723720343503,0.25608129,58495.0,58494.0,0.00025635]
[1723720344610,0.18783598,58495.0,58494.0,0.0854547]
[1723720344810,0.18783598,58495.0,58494.0,0.00025635]
[1723720345111,0.18783598,58495.0,58494.0,0.1709207]
[1723720346300,0.18783598,58495.0,58494.0,0.24679361]
[1723720346812,0.18783598,58495.0,58494.0,0.1709207]
[1723720347195,0.18783598,58495.0,58494.0,0.24680111]
[1723720347603,0.18783598,58495.0,58494.0,0.16160276]
[1723720349013,0.18683598,58495.0,58494.0,0.16160276]
[1723720349908,0.30503598,58495.0,58494.0,0.16160276]
[1723720350210,0.22057198,58495.0,58494.0,0.16160276]
[1723720351105,0.002,58495.0,58494.0,0.53664865]
[1723720351414,0.0512883,58502.0,58495.0,0.51284]
[1723720351708,0.00025635,58505.0,58504.0,0.256353]
[1723720351915,0.00025635,58505.0,58504.0,0.45483147]
[1723720352104,0.11845635,58505.0,58504.0,0.33663147]
[1723720353307,0.01461243,58509.0,58504.0,0.68252947]
[1723720353512,0.3371883,58511.0,58510.0,0.256326]
[1723720353706,0.00088,58520.0,58519.0,0.170858]
[1723720353908,0.08530664,58532.0,58520.0,0.085428]
[1723720353909,0.13668349,58530.0,58520.0,0.085428]
[1723720354111,0.13668349,58530.0,58529.0,0.085414]
[1723720354302,0.01471261,58532.0,58530.0,0.085413]
[1723720354303,0.05125558,58531.0,58530.0,0.085413]
[1723720354515,0.15137919,58532.0,58531.0,0.085412]
[1723720354711,0.10012361,58532.0,58531.0,0.26424939]
[1723720355910,0.10012361,58532.0,58531.0,0.1617403]
[1723720356111,0.15137919,58532.0,58531.0,0.1617403]
[1723720356306,0.10012361,58532.0,58531.0,0.1627403]
[1723720356512,0.10012361,58532.0,58531.0,0.086412]
[1723720357916,0.10012361,58532.0,58531.0,0.087412]
[1723720358216,0.08566235,58535.0,58534.0,0.085407]
[1723720358812,0.1001663,58535.0,58534.0,0.085407]
[1723720359006,0.0147603,58535.0,58534.0,0.085407]
[1723720359409,0.1011663,58535.0,58534.0,0.087407]
[1723720359811,0.0157603,58535.0,58534.0,0.087407]
[1723720360620,0.1011663,58535.0,58534.0,0.087407]
[1723720360816,0.1011663,58535.0,58534.0,0.002]
[1723720361621,0.0157603,58535.0,58534.0,0.087407]
[1723720363816,0.1011663,58535.0,58534.0,0.087407]
[1723720369925,0.1111663,58535.0,58534.0,0.087407]
[1723720370124,0.1011663,58535.0,58534.0,0.087407]
[1723720370314,0.1011663,58535.0,58534.0,0.002]
[1723720370628,0.1111663,58535.0,58534.0,0.002]
[1723720371917,0.1011663,58535.0,58534.0,0.002]
[1723720372118,0.1111663,58535.0,58534.0,0.002]
[1723720373022,0.1011663,58535.0,58534.0,0.002]
[1723720373823,0.1011663,58535.0,58534.0,0.087407]
[1723720374013,0.1011663,58535.0,58534.0,0.448207]
[1723720375025,0.1011663,58535.0,58534.0,0.087407]
[1723720376321,0.2265723,58535.0,58534.0,0.002]
[1723720376516,0.1411663,58535.0,58534.0,0.002]
[1723720376725,0.2265723,58535.0,58534.0,0.002]
[1723720377027,0.1965723,58535.0,58534.0,0.002]
[1723720377623,0.1865723,58535.0,58534.0,0.002]
[1723720377817,0.1965723,58535.0,58534.0,0.002]
[1723720378020,0.2719783,58535.0,58534.0,0.002]
[1723720378222,0.2819783,58535.0,58534.0,0.002]
[1723720378526,0.30966777,58535.0,58534.0,0.002]
[1723720379327,0.170834,58527.0,58526.0,0.08485877]
[1723720379523,0.085419,58526.0,58525.0,0.08485877]
[1723720379826,0.08542,58525.0,58524.0,0.08511512]
[1723720380019,0.08542,58525.0,58524.0,0.07929797]
[1723720380620,0.22206569,58525.0,58524.0,0.16467237]
[1723720380845,0.23206569,58525.0,58524.0,0.16467237]
[1723720381017,0.26626,58525.0,58524.0,0.07929797]
[1723720381224,0.26626,58525.0,58524.0,0.16467427]
[1723720381424,0.31748569,58525.0,58524.0,0.00025635]
[1723720381622,0.31746499,58525.0,58524.0,0.00025635]
[1723720381825,0.30746499,58525.0,58524.0,0.00025635]
[1723720382328,0.30746499,58525.0,58524.0,0.06950777]
[1723720382517,0.30746499,58525.0,58524.0,0.07050777]
[1723720382518,0.08742,58525.0,58524.0,0.07050777]
[1723720382834,0.101631,58525.0,58524.0,0.00225635]
[1723720383418,0.101631,58525.0,58524.0,0.05145635]
[1723720383621,0.101631,58525.0,58524.0,0.00225635]
[1723720383622,0.272471,58525.0,58524.0,0.00225635]
[1723720383824,0.170852,58521.0,58520.0,0.3608]
[1723720384725,0.170852,58521.0,58520.0,0.42901758]
[1723720385223,0.172852,58521.0,58520.0,0.43101758]
[1723720385425,0.172852,58521.0,58520.0,0.3628]
[1723720388315,0.22395872,58521.0,58520.0,0.3628]
[1723720388527,0.172852,58521.0,58520.0,0.3628]
[1723720389924,0.002,58521.0,58520.0,0.58476272]
[1723720390130,0.002,58521.0,58520.0,1.531724]
[1723720390320,0.014211,58525.0,58524.0,0.085422]
[1723720390642,0.085419,58527.0,58526.0,0.085419]
[1723720390818,0.170837,58527.0,58526.0,0.05109061]
[1723720391423,0.085419,58526.0,58525.0,0.10069061]
[1723720391630,0.085419,58526.0,58525.0,0.10069368]
[1723720391830,0.085419,58526.0,58525.0,0.10069436]
[1723720392729,0.085419,58526.0,58525.0,0.0496]
[1723720392930,0.086419,58526.0,58525.0,0.0506]
[1723720393729,0.171838,58526.0,58525.0,0.0506]
[1723720394130,0.172838,58526.0,58525.0,0.13702]
[1723720394731,0.18721137,58526.0,58525.0,0.13702]
[1723720395145,0.002,58526.0,58525.0,0.20513873]
[1723720395428,0.002,58526.0,58525.0,0.58324]
[1723720395631,0.087419,58526.0,58525.0,0.49782]
[1723720395827,0.087419,58526.0,58525.0,0.56595632]
[1723720396336,0.087419,58526.0,58525.0,0.49782]
[1723720396538,0.002,58526.0,58525.0,0.49782]
[1723720397329,0.002,58526.0,58525.0,0.56596725]
[1723720397525,0.087419,58526.0,58525.0,0.56596637]
[1723720397827,0.087419,58526.0,58525.0,0.20516637]
[1723720398231,0.087419,58526.0,58525.0,0.13702]
[1723720402041,0.087419,58526.0,58525.0,0.20518897]
[1723720402840,0.087419,58526.0,58525.0,0.13702]
[1723720403044,0.182838,58526.0,58525.0,0.11977438]
[1723720403243,0.258257,58526.0,58525.0,0.002]
[1723720403544,0.268257,58526.0,58525.0,0.002]
[1723720403746,0.258257,58526.0,58525.0,0.002]
[1723720404140,0.308257,58526.0,58525.0,0.05313869]
[1723720404337,0.308257,58526.0,58525.0,0.002]
[1723720404532,0.308257,58526.0,58524.0,0.05115181]
[1723720404533,0.052,58526.0,58524.0,0.05115181]
[1723720404739,0.46390672,58526.0,58525.0,0.05115204]
[1723720404942,0.17084,58525.0,58524.0,0.05115204]
[1723720405138,0.25626,58525.0,58524.0,0.05115204]
[1723720405343,0.25626,58525.0,58520.0,0.446227]
[1723720405344,0.08542,58525.0,58522.0,0.06821392]
[1723720405646,0.13652672,58525.0,58524.0,0.05116152]
[1723720406346,0.170846,58523.0,58522.0,0.06821392]
[1723720406939,0.17085,58522.0,58521.0,0.06821392]
[1723720407344,0.085425,58522.0,58521.0,0.085426]
[1723720409454,0.087425,58522.0,58521.0,0.086426]
[1723720410444,0.089425,58522.0,58521.0,0.087426]
[1723720413652,0.004,58522.0,58521.0,0.087426]
[1723720413849,0.01568489,58522.0,58521.0,0.172852]
[1723720414155,0.004,58522.0,58521.0,0.33709146]
[1723720414855,0.004,58522.0,58521.0,0.25194175]
[1723720415055,0.004,58522.0,58521.0,0.33724248]
[1723720415353,0.089425,58522.0,58521.0,0.25194175]
[1723720415744,0.089425,58522.0,58521.0,0.25177814]
[1723720415947,0.004,58522.0,58521.0,0.36987814]
[1723720416346,0.089425,58522.0,58521.0,0.36987814]
[1723720416855,0.004,58522.0,58521.0,0.45530414]
[1723720417849,0.089425,58522.0,58521.0,0.33720414]
[1723720418659,0.004,58522.0,58521.0,0.33720414]
[1723720421954,0.004,58522.0,58521.0,0.33719517]
[1723720423552,0.004,58522.0,58521.0,0.42958152]
[1723720423879,0.004,58522.0,58521.0,0.57842054]
[1723720424450,0.004,58522.0,58521.0,0.66384654]
[1723720424857,0.004,58522.0,58521.0,0.42262117]
[1723720425349,0.004,58522.0,58521.0,0.57146239]
[1723720425551,0.004,58522.0,58521.0,0.42262117]
[1723720426261,0.004,58522.0,58521.0,0.57146262]
[1723720428559,0.004,58522.0,58521.0,0.52503308]
[1723720428759,0.004,58522.0,58521.0,0.5250338]
[1723720429766,0.004,58522.0,58521.0,0.42262117]
[1723720429962,0.004,58522.0,58521.0,0.52503945]
[1723720430165,0.089425,58522.0,58521.0,0.52503945]
[1723720430765,0.089425,58522.0,58521.0,0.42262117]
[1723720431060,0.089425,58522.0,58521.0,0.33855897]
[1723720431262,0.260275,58522.0,58521.0,0.172852]
[1723720432458,0.260275,58522.0,58521.0,0.25820371]
[1723720432952,0.260275,58522.0,58521.0,0.172852]
[1723720434766,0.17485,58522.0,58521.0,0.172852]
[1723720436359,0.17485,58522.0,58521.0,0.33867489]
[1723720436760,0.17485,58522.0,58521.0,0.33877879]
[1723720436971,0.17485,58522.0,58521.0,0.172852]
[1723720437262,0.22595672,58522.0,58521.0,0.172852]
[1723720437461,0.17485,58522.0,58521.0,0.25820371]
[1723720437656,0.22595672,58522.0,58521.0,0.172852]
[1723720439166,0.17485,58522.0,58521.0,0.25363152]
[1723720441374,0.089425,58522.0,58521.0,0.25363152]
[1723720443271,0.089425,58522.0,58521.0,0.25358491]
[1723720444863,0.004,58522.0,58521.0,0.45711091]
[1723720445063,0.004,58522.0,58521.0,0.65586529]
[1723720445259,0.004,58522.0,58521.0,0.75828729]
[1723720446069,0.004,58522.0,58521.0,0.65586529]
[1723720446471,0.089425,58522.0,58521.0,0.50701091]
[1723720446670,0.089425,58522.0,58521.0,0.65586528]
[1723720446864,0.004,58522.0,58521.0,0.65586528]
[1723720447070,0.004,58522.0,58521.0,0.75828728]
[1723720447774,0.004,58522.0,58521.0,0.75825754]
[1723720447962,0.004,58522.0,58521.0,1.65390154]
[1723720448160,0.004,58522.0,58521.0,1.74645347]
[1723720448366,0.004,58522.0,58521.0,2.13980281]
[1723720448566,0.004,58522.0,58521.0,2.25941923]
[1723720449261,0.004,58522.0,58521.0,2.13980281]
[1723720449459,0.004,58522.0,58521.0,2.05437681]
[1723720449672,0.004,58522.0,58521.0,1.66615541]
[1723720449873,0.004,58522.0,58521.0,1.40037883]
[1723720450067,0.004,58522.0,58521.0,1.68227883]
[1723720450268,0.004,58522.0,58521.0,1.67278532]
[1723720450468,0.004,58522.0,58521.0,1.27278532]
[1723720450773,0.207525,58522.0,58521.0,0.31696279]
[1723720451073,0.207525,58522.0,58521.0,0.41937624]
[1723720451277,0.207525,58522.0,58521.0,0.16812917]
[1723720452077,0.29295,58522.0,58521.0,0.16812917]
[1723720453367,0.207525,58522.0,58521.0,0.16812917]
[1723720454573,0.21913608,58522.0,58521.0,0.16812917]
[1723720455172,0.30456108,58522.0,58521.0,0.16812917]
[1723720455373,0.21913608,58522.0,58521.0,0.16812917]
[1723720456674,0.21913608,58522.0,58521.0,0.16917281]
[1723720459178,0.30456108,58522.0,58521.0,0.16917281]
[1723720459377,0.21913608,58522.0,58521.0,0.16917281]
[1723720461399,0.21913608,58522.0,58521.0,0.1692785]
[1723720462180,0.30456108,58522.0,58521.0,0.0838525]
[1723720462585,0.21913608,58522.0,58521.0,0.1692785]
[1723720462793,0.30456108,58522.0,58521.0,0.1692785]
[1723720463481,0.21913608,58522.0,58521.0,0.1692785]
[1723720463883,0.30456108,58522.0,58521.0,0.1692785]
[1723720464285,0.10103608,58522.0,58521.0,0.2873785]
[1723720465079,0.18646108,58522.0,58521.0,0.2873785]
[1723720467487,0.10103608,58522.0,58521.0,0.3728045]
[1723720468394,0.18646108,58522.0,58521.0,0.3728045]
[1723720468585,0.10103608,58522.0,58521.0,0.3728045]
[1723720468785,0.18646108,58522.0,58521.0,0.3728045]
[1723720470393,0.18646108,58522.0,58521.0,0.28709143]
[1723720470587,0.10103608,58522.0,58521.0,0.53835651]
[1723720470787,0.10103608,58522.0,58521.0,0.62378251]
[1723720471183,0.10103608,58522.0,58521.0,0.53835651]
[1723720471389,0.089425,58522.0,58521.0,0.62378251]
[1723720471597,0.089425,58522.0,58521.0,0.56866906]
[1723720472314,0.17485,58522.0,58521.0,0.41981743]
[1723720472485,0.17485,58522.0,58521.0,0.56866682]
[1723720473088,0.17485,58522.0,58521.0,0.48324082]
[1723720473791,0.17485,58522.0,58521.0,0.56866682]
[1723720473992,0.17485,58522.0,58521.0,0.48324082]
[1723720474393,0.17485,58522.0,58521.0,0.52136682]
[1723720474592,0.089425,58522.0,58521.0,0.52136682]
[1723720474791,0.17485,58522.0,58521.0,0.52136682]
[1723720474991,0.089425,58522.0,58521.0,0.43594082]
[1723720475292,0.17485,58522.0,58521.0,0.52136682]
[1723720475693,0.089425,58522.0,58521.0,0.52136682]
[1723720475900,0.089425,58522.0,58521.0,0.43980139]
[1723720476097,0.089425,58522.0,58521.0,0.35437539]
[1723720476304,0.089425,58522.0,58521.0,0.43980139]
[1723720476803,0.089425,58522.0,58521.0,0.80060139]
[1723720477103,0.089425,58522.0,58521.0,0.88200664]
[1723720477504,0.089425,58522.0,58521.0,0.96341017]
[1723720478201,0.089425,58522.0,58521.0,1.06583901]
[1723720478502,0.089425,58522.0,58521.0,0.96341017]
[1723720480093,0.17485,58522.0,58521.0,0.81456078]
[1723720480403,0.089425,58522.0,58521.0,1.06583956]
[1723720481003,0.17485,58522.0,58521.0,1.06583956]
[1723720481204,0.089425,58522.0,58521.0,1.06583956]
[1723720482202,0.089425,58522.0,58521.0,0.97510917]
[1723720482596,0.17485,58522.0,58521.0,0.9634094]
[1723720482789,0.089425,58522.0,58521.0,0.9634094]
[1723720482990,0.089425,58522.0,58521.0,0.88200415]
[1723720483195,0.17485,58522.0,58521.0,0.88200415]
[1723720483395,0.17485,58522.0,58521.0,0.61505553]
[1723720483598,0.089425,58522.0,58521.0,0.76390527]
[1723720484104,0.207525,58522.0,58521.0,0.76390527]
[1723720485003,0.089425,58522.0,58521.0,0.86639576]
[1723720485612,0.089425,58522.0,58521.0,1.03079576]
[1723720486509,0.089425,58522.0,58521.0,0.92830527]
[1723720487007,0.089425,58522.0,58521.0,0.97560527]
[1723720487308,0.089425,58522.0,58521.0,0.85750527]
[1723720487606,0.17485,58522.0,58521.0,0.85750527]
[1723720487808,0.29295,58522.0,58521.0,0.77207927]
[1723720488194,0.29295,58522.0,58521.0,0.87456845]
[1723720488613,0.207525,58522.0,58521.0,0.87456845]
[1723720490594,0.207525,58522.0,58521.0,0.72571871]
[1723720490798,0.207525,58522.0,58521.0,0.87456704]
[1723720491705,0.089425,58522.0,58521.0,0.95999304]
[1723720491909,0.089425,58522.0,58521.0,1.07809304]
[1723720492308,0.089425,58522.0,58521.0,0.99266704]
[1723720493308,0.17485,58522.0,58521.0,0.87456704]
[1723720493499,0.207525,58522.0,58521.0,0.87456704]
[1723720494239,0.207525,58522.0,58521.0,0.72571871]